bitfinex-derivatives/quotes_ETHF0:USTF0_20250309
["timestamp","ask_amount","ask_price","bid_price","bid_amount"]
[1741497546410,0.6544,2187.7,2187.6,2.48964]
[1741497547105,1.37505401,2187.9,2187.7,0.5486]
[1741497547106,0.82647401,2187.9,2187.7,0.5486]
[1741497547309,0.82647401,2187.9,2187.8,0.6532]
[1741497548406,0.54856,2187.9,2187.8,0.6532]
[1741497548608,1.78225,2188.0,2187.8,0.6532]
[1741497548807,1.2337,2188.0,2187.8,0.6532]
[1741497549003,1.78225,2188.0,2187.8,0.6532]
[1741497549516,1.2337,2188.0,2187.8,0.6532]
[1741497549715,1.78225,2188.0,2187.8,0.6532]
[1741497551015,1.2337,2188.0,2187.8,0.6532]
[1741497551516,0.54856,2187.9,2187.8,0.6532]
[1741497551913,1.78226,2188.0,2187.8,0.54859]
[1741497552421,1.2337,2188.0,2187.8,0.54859]
[1741497552617,1.2337,2188.0,2187.9,0.6322]
[1741497553423,1.78224,2188.0,2187.9,0.6322]
[1741497553822,0.00456902,2188.1,2187.9,0.6322]
[1741497554116,0.00456902,2188.1,2188.0,0.54854]
[1741497554315,0.00456902,2188.1,2188.0,1.15654]
[1741497555117,0.00456902,2188.1,2188.0,0.608]
[1741497555317,0.00456902,2188.1,2188.0,1.15654]
[1741497556514,0.00456902,2188.1,2188.0,3.09754]
[1741497558719,0.54843,2188.5,2188.1,0.54851]
[1741497559117,3.2078,2188.5,2188.0,5.7568]
[1741497559416,3.75623,2188.5,2188.2,0.54846]
[1741497559927,3.75623,2188.5,2188.3,0.6417]
[1741497560117,3.2078,2188.5,2188.3,0.6417]
[1741497560623,3.2078,2188.5,2188.3,1.19015]
[1741497560818,3.2078,2188.5,2188.3,0.6417]
[1741497561125,3.2078,2188.5,2188.3,1.19015]
[1741497561325,3.2078,2188.5,2188.3,0.6417]
[1741497561624,3.2078,2188.5,2188.4,0.54844]
[1741497562221,3.2078,2188.5,2188.3,0.6417]
[1741497562222,0.54845,2188.4,2188.1,0.5485]
[1741497562420,0.6519,2188.3,2188.1,0.5485]
[1741497562618,1.2697,2188.3,2188.1,0.5485]
[1741497563212,1.81817,2188.3,2188.0,5.69632]
[1741497563424,0.5931,2188.2,2188.1,0.54851]
[1741497565025,3.2078,2188.8,2188.1,4.0]
[1741497565223,4.40774,2188.8,2188.5,0.54841]
[1741497565526,3.8594,2188.8,2188.4,0.00685354]
[1741497565729,0.54839,2188.6,2188.4,0.00685354]
[1741497566028,0.592,2188.7,2188.4,0.00685354]
[1741497566221,1.14039,2188.7,2188.4,0.00685354]
[1741497567421,0.592,2188.7,2188.4,0.55527354]
[1741497569626,0.592,2188.7,2188.5,0.54841]
[1741497570522,0.592,2188.7,2188.4,0.00685354]
[1741497570724,1.14037,2188.7,2188.4,0.55528354]
[1741497570932,0.6425,2188.6,2188.4,0.00685354]
[1741497571626,1.19089,2188.6,2188.4,0.00685354]
[1741497574925,0.6425,2188.6,2188.4,0.00685354]
[1741497575327,0.592,2188.7,2188.5,0.5484]
[1741497575531,0.592,2188.7,2188.5,1.1628]
[1741497575828,0.592,2188.7,2188.5,0.6144]
[1741497576331,0.592,2188.7,2188.5,1.16281]
[1741497576532,1.14036,2188.7,2188.5,0.6144]
[1741497576724,0.592,2188.7,2188.5,0.6144]
[1741497577228,1.14037,2188.7,2188.5,0.6144]
[1741497577430,1.14037,2188.7,2188.4,0.55527354]
[1741497578932,0.592,2188.7,2188.4,0.00685354]
[1741497579132,1.14038,2188.7,2188.4,0.00685354]
[1741497579332,1.14038,2188.7,2188.4,0.55529354]
[1741497580623,0.54841,2188.5,2188.4,0.00685354]
[1741497582025,0.6268,2188.6,2188.4,0.00685354]
[1741497582226,1.17521,2188.6,2188.4,0.00685354]
[1741497583130,0.54841,2188.5,2188.4,0.00685354]
[1741497587136,1.17521,2188.6,2188.4,0.00685354]
[1741497587535,0.6268,2188.6,2188.4,0.00685354]
[1741497587736,0.54841,2188.5,2188.4,0.00685354]
[1741497588033,0.6268,2188.6,2188.4,0.00685354]
[1741497588237,0.54841,2188.5,2188.4,0.00685354]
[1741497588938,0.5484,2188.6,2188.4,0.00685354]
[1741497589137,0.592,2188.7,2188.4,0.00685354]
[1741497589340,0.5484,2188.6,2188.4,0.00685354]
[1741497589827,0.54841,2188.5,2188.4,0.00685354]
[1741497608363,3.2078,2189.1,2188.4,1.95085354]
[1741497608571,3.2078,2189.1,2188.6,3.2078]
[1741497608870,3.2078,2189.1,2188.7,1.78075]
[1741497608871,0.5483,2189.0,2188.7,1.78075]
[1741497609265,0.5483,2189.0,2188.8,0.6112]
[1741497609463,3.2078,2189.1,2188.8,0.6112]
[1741497609662,3.75608,2189.1,2188.8,3.10852]
[1741497610067,3.2078,2189.1,2188.8,2.5602]
[1741497610465,4.4299,2189.4,2189.0,0.54829]
[1741497610670,0.54822,2189.3,2189.0,0.54829]
[1741497611075,3.8091,2189.4,2189.0,0.9058271]
[1741497611382,0.54822,2189.3,2189.0,0.9058271]
[1741497611768,4.35729,2189.4,2189.0,0.9058271]
[1741497612172,3.8091,2189.4,2189.0,0.9058271]
[1741497612570,3.8091,2189.4,2189.0,0.9058171]
[1741497612967,4.35729,2189.4,2189.0,0.9058171]
[1741497613775,4.35729,2189.4,2189.0,0.3575371]
[1741497613776,3.8091,2189.4,2189.0,0.3575371]
[1741497613975,3.8091,2189.4,2189.1,0.54825]
[1741497614167,3.8091,2189.4,2189.2,0.6226]
[1741497614367,3.8091,2189.4,2189.2,1.2456]
[1741497614568,4.35729,2189.4,2189.2,1.2456]
[1741497615475,4.3573,2189.4,2189.2,1.2456]
[1741497617174,4.35731,2189.4,2189.2,1.2456]
[1741497625386,3.8091,2189.4,2189.2,1.2456]
[1741497625569,3.2078,2189.4,2189.2,1.2456]
[1741497625878,1.16892,2189.7,2189.2,1.2456]
[1741497626079,0.6208,2189.7,2189.2,3.1906]
[1741497626474,0.6208,2189.7,2189.6,0.54814]
[1741497626675,3.8343,2189.8,2189.6,0.54814]
[1741497626875,3.8343,2189.8,2189.2,6.3984]
[1741497627277,4.3824,2189.8,2189.5,0.54815]
[1741497627476,4.3824,2189.8,2189.6,0.5968]
[1741497627978,22.13722635,2190.0,2189.6,0.5968]
[1741497627979,3.18445972,2190.0,2189.9,0.54806]
[1741497628176,0.54793,2190.5,2190.1,0.548]
[1741497628376,0.54793,2190.5,2190.2,3.2078]
[1741497628576,0.609,2190.4,2190.2,3.75577]
[1741497628977,0.609,2190.4,2190.2,3.75578]
[1741497629179,3.2078,2190.7,2190.2,3.2078]
[1741497629379,1.15685,2190.8,2190.5,3.75571]
[1741497629577,0.609,2190.8,2190.5,3.2078]
[1741497629778,1.15686,2190.8,2190.5,3.2078]
[1741497629978,0.609,2190.8,2190.5,3.2078]
[1741497630179,1.15685,2190.8,2190.5,3.2078]
[1741497630380,0.609,2190.8,2190.5,3.2078]
[1741497630580,0.54788,2190.7,2190.5,3.2078]
[1741497630782,0.54789,2190.6,2190.5,3.2078]
[1741497631282,0.54788,2190.7,2190.5,3.2078]
[1741497631580,0.609,2190.8,2190.5,3.2078]
[1741497631783,0.54788,2190.7,2190.5,3.2078]
[1741497632579,0.609,2190.8,2190.5,3.2078]
[1741497632774,0.54789,2190.6,2190.5,3.2078]
[1741497632982,0.609,2190.8,2190.5,3.2078]
[1741497633281,0.54788,2190.7,2190.5,3.2078]
[1741497633684,0.54789,2190.6,2190.5,3.2078]
[1741497636080,0.5977,2190.9,2190.5,5.1688]
[1741497636276,0.455,2191.4,2190.8,3.2078]
[1741497636277,0.6204,2191.4,2190.8,3.2078]
[1741497636476,0.6204,2191.4,2191.2,0.54773]
[1741497636676,0.6204,2191.4,2190.9,1.964]
[1741497636677,0.6204,2191.4,2191.1,0.54776]
[1741497637385,0.6204,2191.4,2190.9,1.97085354]
[1741497637987,3.75544,2191.6,2191.1,3.2078]
[1741497638191,4.37584,2191.6,2191.2,0.5932]
[1741497638386,3.8282,2191.6,2191.2,0.5932]
[1741497638893,0.54767,2191.5,2191.2,1.14093]
[1741497639390,0.455,2191.9,2191.4,3.2078]
[1741497639588,1.2255,2192.0,2191.7,3.2078]
[1741497639792,0.54757,2191.9,2191.7,3.2078]
[1741497640090,1.77305,2192.0,2191.7,3.2078]
[1741497640490,1.2255,2192.0,2191.8,0.54758]
[1741497640688,1.2255,2192.0,2191.7,3.7554]
[1741497640883,1.2255,2192.0,2191.8,0.54758]
[1741497641591,1.2255,2192.0,2191.9,0.54756]
[1741497641984,13.21595778,2192.2,2191.7,3.2078]
[1741497642202,13.21595778,2192.2,2192.0,3.2078]
[1741497642990,13.21595778,2192.2,2192.0,3.75533]
[1741497643190,13.21595778,2192.2,2192.0,3.75534]
[1741497643793,13.76346778,2192.2,2192.0,3.2078]
[1741497644189,13.76346778,2192.2,2192.0,3.75534]
[1741497644397,13.76344778,2192.2,2192.0,3.75534]
[1741497644585,13.76344778,2192.2,2192.0,3.2078]
[1741497644790,13.76344778,2192.2,2192.0,3.75534]
[1741497645283,13.76345778,2192.2,2192.0,3.75534]
[1741497645687,13.21595778,2192.2,2192.1,0.54751]
[1741497646094,13.21595778,2192.2,2192.0,3.75533]
[1741497646492,13.76345778,2192.2,2192.0,3.75533]
[1741497646687,0.6155,2192.3,2192.0,3.2078]
[1741497646992,1.16297,2192.3,2192.0,3.75532]
[1741497647298,0.5475,2192.2,2192.0,3.75532]
[1741497647499,0.6155,2192.3,2192.0,3.2078]
[1741497647697,0.54751,2192.2,2192.0,3.2078]
[1741497648199,0.6155,2192.3,2192.0,3.2078]
[1741497648594,0.54751,2192.1,2192.0,3.2078]
[1741497649397,0.6155,2192.3,2191.7,5.8182]
[1741497649896,0.54753,2192.1,2191.7,5.8182]
[1741497650097,0.6155,2192.3,2192.0,3.2078]
[1741497650296,0.54751,2192.1,2192.0,3.2078]
[1741497659404,0.6155,2192.3,2191.7,5.8182]
[1741497659405,3.8233,2192.3,2191.7,5.8182]
[1741497659606,0.54759,2191.8,2191.7,3.8552]
[1741497666699,3.2078,2192.0,2191.4,3.2078]
[1741497666899,3.2078,2192.0,2191.0,0.4568]
[1741497666900,0.54776,2191.1,2191.0,0.4568]
[1741497667107,1.957,2191.4,2190.9,3.21465354]
[1741497667302,0.455,2191.6,2191.2,3.2078]
[1741497667617,2.5502,2191.7,2191.2,3.2078]
[1741497667813,0.54764,2191.6,2191.5,3.2078]
[1741497669613,0.54771,2191.3,2191.2,3.2078]
[1741497670008,0.5932,2191.7,2191.2,3.2078]
[1741497670213,0.54771,2191.3,2191.2,3.2078]
[1741497672908,0.6253,2191.5,2191.2,3.2078]
[1741497673115,0.54771,2191.3,2191.2,3.2078]
[1741497678316,0.54776,2191.1,2191.0,1.8155]
[1741497678508,0.54776,2191.1,2191.0,5.0233]
[1741497684516,0.54776,2191.1,2191.0,4.4099]
[1741497684913,0.54776,2191.1,2191.0,3.2078]
[1741497685419,0.54784,2190.8,2190.7,20.483]
[1741497689912,1.13864,2190.8,2190.7,20.483]
[1741497691514,0.54784,2190.8,2190.7,20.483]
[1741497697019,0.59765354,2191.0,2190.7,20.483]
[1741497697020,0.00685354,2191.0,2190.7,23.6908]
[1741497697223,0.54782,2190.9,2190.8,1.8446]
[1741497697415,0.54781,2190.9,2190.8,1.8446]
[1741497698223,0.00685354,2191.0,2190.8,1.8446]
[1741497698721,0.54771,2191.4,2191.1,0.54774]
[1741497698924,5.1628,2191.5,2191.2,1.8405]
[1741497699124,0.54771,2191.3,2191.2,1.8405]
[1741497699920,3.75548,2191.5,2191.2,1.8405]
[1741497700117,3.75548,2191.5,2191.3,0.5477]
[1741497700312,3.2078,2191.8,2191.3,3.2078]
[1741497700623,0.54762,2191.7,2191.4,0.54769]
[1741497700824,3.2078,2191.8,2191.3,3.2078]
[1741497701017,0.54765,2191.6,2191.3,3.2078]
[1741497701326,2.01473,2192.1,2191.4,0.54768]
[1741497701327,0.54763,2191.7,2191.4,0.54768]
[1741497701519,0.6459,2192.1,2191.3,3.2078]
[1741497701714,2.01473,2192.1,2191.3,3.2078]
[1741497702225,0.54762,2191.7,2191.4,0.54768]
[1741497702617,0.54763,2191.7,2191.4,0.54768]
[1741497703918,0.54763,2191.7,2191.5,0.54766]
[1741497704116,0.54763,2191.7,2191.6,1.2611]
[1741497704319,0.54763,2191.7,2191.6,1.8842]
[1741497704523,0.6459,2192.1,2191.6,1.8842]
[1741497705024,0.54761,2191.7,2191.6,1.89105354]
[1741497705427,0.54761,2191.7,2191.6,5.09885354]
[1741497706325,3.8617,2192.2,2191.6,5.09885354]
[1741497707023,3.8617,2192.2,2191.6,5.64647354]
[1741497707024,0.54757,2191.9,2191.6,5.64647354]
[1741497707221,3.8617,2192.2,2191.6,5.09885354]
[1741497707427,0.54755,2192.0,2191.7,0.54761]
[1741497707818,0.54755,2192.0,2191.8,0.54759]
[1741497708217,3.75531,2192.2,2191.9,0.54756]
[1741497708522,0.54752,2192.1,2192.0,1.8701]
[1741497709526,3.2078,2192.5,2192.0,6.23725134]
[1741497709832,0.54735,2192.8,2192.4,0.54742]
[1741497710129,3.8487,2193.0,2192.5,1.8823]
[1741497710325,3.2078,2193.0,2192.5,5.0901]
[1741497710926,0.54736,2192.8,2192.5,5.63749]
[1741497711230,1.36809,2193.3,2192.5,5.63749]
[1741497711231,3.2078,2193.3,2192.5,5.0901]
[1741497711634,0.54731,2193.0,2192.7,0.54735]
[1741497711928,0.54728,2193.1,2192.8,0.54734]
[1741497712123,0.54728,2193.1,2192.6,0.00685354]
[1741497712124,3.2078,2193.3,2192.7,0.54735]
[1741497712325,0.54728,2193.1,2192.8,3.2078]
[1741497712523,3.2078,2193.3,2192.8,3.2078]
[1741497712726,0.54731,2193.0,2192.8,3.2078]
[1741497713632,3.2078,2193.3,2192.8,3.2078]
[1741497714035,0.5473,2193.0,2192.8,3.2078]
[1741497714428,3.2078,2193.3,2192.8,3.2078]
[1741497714625,0.54731,2193.0,2192.8,3.2078]
[1741497714827,0.54731,2192.9,2192.8,3.2078]
[1741497715528,0.5473,2193.0,2192.8,3.2078]
[1741497715930,0.54731,2192.9,2192.8,3.2078]
[1741497716731,3.2078,2193.3,2192.8,3.2078]
[1741497717638,0.54731,2193.0,2192.8,3.2078]
[1741497717934,0.54731,2193.0,2192.8,3.75513]
[1741497718335,0.54731,2193.0,2192.8,3.2078]
[1741497719037,3.2078,2193.3,2192.8,3.2078]
[1741497719333,0.54731,2192.9,2192.8,3.2078]
[1741497719532,0.5473,2193.0,2192.8,3.2078]
[1741497720240,1.928,2193.4,2192.8,3.2078]
[1741497720535,0.5473,2193.0,2192.8,3.2078]
[1741497720931,0.54731,2192.9,2192.8,3.2078]
[1741497721329,0.5473,2193.0,2192.8,3.2078]
[1741497722032,1.928,2193.4,2192.8,3.2078]
[1741497722232,0.54728,2193.1,2192.8,3.2078]
[1741497722843,0.54728,2193.1,2192.8,3.75513]
[1741497723047,0.54728,2193.1,2192.9,0.621]
[1741497723541,0.54728,2193.1,2192.9,1.2395]
[1741497724239,1.928,2193.4,2192.9,1.8319]
[1741497724542,0.54728,2193.1,2192.9,1.8319]
[1741497726541,0.54731,2192.9,2192.8,3.2078]
[1741497727541,4.4505,2192.9,2192.6,0.00685354]
[1741497727841,0.54736,2192.7,2192.6,0.00685354]
[1741497735449,0.6017,2192.9,2192.6,0.00685354]
[1741497735651,0.6343,2193.0,2192.6,0.00685354]
[1741497735652,0.6343,2193.0,2192.7,3.2078]
[1741497735852,0.6343,2193.0,2192.8,1.2379]
[1741497735853,0.54733,2192.9,2192.8,1.2379]
[1741497736054,0.54733,2192.9,2192.8,0.6266]
[1741497736650,0.54734,2192.8,2192.7,3.852]
[1741497737453,0.455,2193.1,2192.8,0.54732]
[1741497737658,0.455,2193.1,2192.7,3.852]
[1741497737855,0.54732,2192.9,2192.7,4.39935]
[1741497738062,0.54732,2192.9,2192.7,3.852]
[1741497739654,0.6134,2193.2,2192.7,3.852]
[1741497739862,0.54732,2192.9,2192.7,3.852]
[1741497740756,0.6087,2193.1,2192.7,3.852]
[1741497741264,0.54734,2192.8,2192.7,3.852]
[1741497741862,0.5473,2193.0,2192.7,4.39935]
[1741497742162,0.54732,2192.9,2192.7,3.852]
[1741497742565,0.54734,2192.8,2192.7,3.852]
[1741497744969,1.2102,2193.1,2192.7,3.852]
[1741497745168,1.15596,2193.1,2193.0,3.2078]
[1741497748770,0.54734,2192.8,2192.7,0.6442]
[1741497756374,1.9769,2193.1,2192.6,4.48955354]
[1741497756577,0.54736,2192.7,2192.6,3.21465354]
[1741497759180,1.18396,2192.7,2192.6,3.21465354]
[1741497760081,0.54741,2192.5,2192.4,20.474]
[1741497761176,0.5474,2192.6,2192.4,20.474]
[1741497761487,0.5474,2192.6,2192.5,1.9076]
[1741497765480,0.55423354,2192.7,2192.5,2.45501]
[1741497765684,0.55421354,2192.7,2192.6,3.2078]
[1741497768480,0.54739,2192.6,2192.5,5.1154]
[1741497768881,0.00685354,2192.7,2192.5,5.1154]
[1741497769274,0.55424354,2192.7,2192.5,5.66281]
[1741497769681,0.00685354,2192.7,2192.5,5.1154]
[1741497769884,0.54739,2192.6,2192.5,5.1154]
[1741497771182,0.54739,2192.6,2192.5,3.8398]
[1741497771383,1.79589,2192.6,2192.5,3.8398]
[1741497772181,1.79589,2192.6,2192.5,3.2078]
[1741497772385,2.41199,2192.6,2192.5,3.2078]
[1741497774386,0.54741,2192.5,2192.4,20.474]
[1741497775188,0.54746,2192.3,2192.2,0.00685354]
[1741497777085,5.971,2192.3,2192.0,3.2078]
[1741497777284,0.54751,2192.1,2192.0,3.2078]
[1741497780501,4.54751,2192.1,2192.0,3.2078]
[1741497780799,0.54756,2191.9,2191.8,0.00685354]
[1741497781005,2.51756,2191.9,2191.8,0.00685354]
[1741497783397,0.54756,2191.9,2191.8,0.00685354]
[1741497783801,0.54756,2191.9,2191.8,0.61265354]
[1741497787107,0.54756,2191.9,2191.8,0.00685354]
[1741497797229,0.54766,2191.5,2191.4,3.2078]
[1741497800128,0.54769,2191.4,2191.3,20.478]
[1741497806432,0.00685354,2191.6,2191.5,0.54766]
[1741497806630,0.55450354,2191.6,2191.5,3.2078]
[1741497806829,0.55450354,2191.6,2191.5,4.4884]
[1741497807032,0.55450354,2191.6,2191.5,1.2806]
[1741497807225,0.55450354,2191.6,2191.5,0.6369]
[1741497807726,0.00685354,2191.6,2191.5,4.39236]
[1741497807931,0.55449354,2191.6,2191.5,3.8447]
[1741497811441,0.55449354,2191.6,2191.5,4.39236]
[1741497811637,0.00685354,2191.6,2191.5,3.75546]
[1741497811834,0.55449354,2191.6,2191.5,3.2078]
[1741497812532,0.00685354,2191.6,2191.5,3.2078]
[1741497812734,0.55449354,2191.6,2191.5,3.2078]
[1741497814045,0.00685354,2191.6,2191.5,3.2078]
[1741497814244,0.55449354,2191.6,2191.5,3.2078]
[1741497824550,1.19149354,2191.6,2191.5,3.2078]
[1741497826542,1.83679354,2191.6,2191.5,3.2078]
[1741497826743,0.54769,2191.4,2191.3,1.9003]
[1741497826943,0.54769,2191.4,2191.3,5.1081]
[1741497827953,0.54769,2191.4,2191.3,3.2078]
[1741497828845,2.51369,2191.4,2191.3,3.2078]
[1741497837358,0.54769,2191.4,2191.3,3.2078]
[1741497837857,0.54769,2191.4,2191.3,5.0638]
[1741497840156,1.959,2191.5,2191.3,5.0638]
[1741497840356,0.54769,2191.4,2191.3,5.0638]
[1741497852470,0.00685354,2191.6,2191.3,5.0638]
[1741497852675,0.55450354,2191.6,2191.4,0.54767]
[1741497852974,0.54766,2191.5,2191.4,0.54767]
[1741497853374,0.54766,2191.5,2191.4,0.54769]
[1741497853568,0.54766,2191.5,2191.3,5.61149]
[1741497853976,0.54766,2191.5,2191.3,5.0638]
[1741497855178,0.54766,2191.5,2191.4,0.54769]
[1741497855566,0.54766,2191.5,2191.3,5.0638]
[1741497855963,0.55451354,2191.6,2191.4,0.54769]
[1741497856674,0.54766,2191.5,2191.4,0.54769]
[1741497858876,0.55450354,2191.6,2191.3,5.0638]
[1741497859077,0.55450354,2191.6,2191.4,0.54769]
[1741497860377,0.54766,2191.5,2191.4,0.54769]
[1741497861978,0.54768,2191.5,2191.3,5.61151]
[1741497862180,0.54768,2191.5,2191.3,5.0638]
[1741497862476,0.54768,2191.5,2191.4,0.54769]
[1741497863081,0.54768,2191.5,2191.3,5.0638]
[1741497863280,0.54768,2191.5,2191.3,5.61151]
[1741497863475,0.00685354,2191.6,2191.3,5.61151]
[1741497863682,0.54769,2191.4,2191.3,5.0638]
[1741497864483,0.54769,2191.4,2191.3,5.61151]
[1741497865681,0.54768,2191.5,2191.3,5.61151]
[1741497867181,0.54768,2191.5,2191.3,2.40371]
[1741497867576,0.54768,2191.5,2191.4,3.2078]
[1741497870075,0.54768,2191.5,2191.3,2.40371]
[1741497870378,0.00685354,2191.6,2191.4,3.2078]
[1741497870584,0.54768,2191.5,2191.4,3.2078]
[1741497870887,0.54768,2191.5,2191.4,3.75549]
[1741497871192,0.55450354,2191.6,2191.5,0.54766]
[1741497871386,0.55450354,2191.6,2191.4,3.75547]
[1741497872785,0.00685354,2191.6,2191.5,0.54766]
[1741497873182,0.00685354,2191.6,2191.4,3.2078]
[1741497873387,1.2416,2191.9,2191.4,3.2078]
[1741497873584,0.6456,2191.9,2191.8,3.75539]
[1741497873893,0.54756,2192.0,2191.8,3.75538]
[1741497874082,1.948,2192.1,2191.8,3.2078]
[1741497874286,2.49553,2192.1,2191.9,1.20056]
[1741497874484,2.49553,2192.1,2191.9,2.49476]
[1741497874690,1.25175354,2192.2,2191.9,2.49476]
[1741497874984,0.54754,2192.0,2191.9,1.9472]
[1741497875189,1.25175354,2192.2,2191.9,1.9472]
[1741497875383,0.54754,2192.0,2191.9,1.9472]
[1741497875984,1.25175354,2192.2,2191.9,2.49476]
[1741497876184,0.54754,2192.0,2191.9,1.9472]
[1741497876385,0.54754,2192.0,2191.9,5.155]
[1741497877181,1.25175354,2192.2,2191.9,5.70256]
[1741497877393,1.25175354,2192.2,2191.9,5.155]
[1741497877596,1.79926354,2192.2,2192.0,0.54753]
[1741497877892,1.25175354,2192.2,2191.9,5.155]
[1741497878084,0.54753,2192.1,2191.9,5.70255]
[1741497878593,1.25175354,2192.2,2191.9,5.70255]
[1741497878785,0.54753,2192.1,2191.9,5.70255]
[1741497878987,1.25175354,2192.2,2191.9,5.155]
[1741497879279,0.54753,2192.1,2191.9,5.70256]
[1741497879482,0.54754,2192.0,2191.9,5.70256]
[1741497879683,0.54754,2192.0,2191.9,5.155]
[1741497879883,1.25175354,2192.2,2191.9,5.155]
[1741497880084,0.54754,2192.0,2191.9,5.155]
[1741497880286,1.25175354,2192.2,2191.9,3.2078]
[1741497880485,0.54754,2192.0,2191.9,3.2078]
[1741497880685,2.49454,2192.0,2191.9,3.2078]
[1741497885291,0.54767,2191.5,2191.3,2.3516]
[1741497885591,0.54767,2191.5,2191.4,3.2078]
[1741497888990,0.54761,2191.7,2191.4,3.2078]
[1741497889198,0.54766,2191.6,2191.4,3.2078]
[1741497889596,0.54766,2191.5,2191.4,3.2078]
[1741497895901,0.54771,2191.3,2191.2,0.00685354]
[1741497896107,2.49571,2191.3,2191.2,0.00685354]
[1741497896304,0.54779,2191.0,2190.9,20.487]
[1741497897404,1.15059,2191.0,2190.9,20.487]
[1741497897799,0.6028,2191.0,2190.7,3.21465354]
[1741497898006,0.54784,2190.8,2190.7,3.21465354]
[1741497898503,1.15224,2190.8,2190.7,3.21465354]
[1741497898705,0.6028,2191.0,2190.7,3.76251354]
[1741497899004,0.00685354,2191.1,2190.7,3.21465354]
[1741497899207,0.54781,2190.9,2190.8,0.6303]
[1741497899906,0.54784,2190.8,2190.7,3.21465354]
[1741497900309,0.54783,2190.9,2190.7,3.21465354]
[1741497901304,0.54784,2190.8,2190.7,3.21465354]
[1741497902610,0.00685354,2191.1,2190.7,3.21465354]
[1741497902802,0.55463354,2191.1,2190.8,0.54782]
[1741497903005,0.54779,2191.0,2190.9,0.611]
[1741497910016,0.54779,2191.0,2190.7,3.21465354]
[1741497910017,0.54781,2190.9,2190.8,0.6257]
[1741497910521,0.54784,2190.8,2190.7,3.21465354]
[1741497911311,1.17914,2190.8,2190.7,3.21465354]
[1741497914419,0.6313,2190.8,2190.3,3.8249]
[1741497914619,0.54794,2190.4,2190.3,3.8249]
[1741497926330,0.54794,2190.4,2190.3,3.2078]
[1741497930230,1.15714,2190.4,2190.3,3.2078]
[1741497930628,1.77734,2190.4,2190.3,3.2078]
[1741497931534,0.54799,2190.2,2190.1,21.09185354]
[1741497937633,0.54799,2190.2,2190.1,0.60385354]
[1741497938340,0.54799,2190.2,2190.1,1.15186354]
[1741497940934,0.54799,2190.2,2190.1,0.60385354]
[1741497941538,0.54799,2190.2,2190.1,1.15186354]
[1741497941737,1.959,2190.5,2190.1,0.60385354]
[1741497941937,0.54797,2190.3,2190.1,1.15185354]
[1741497942139,0.54797,2190.3,2190.2,3.2078]
[1741497947848,0.54797,2190.3,2190.2,3.75579]
[1741497949050,0.54797,2190.3,2190.2,3.2078]
[1741497949549,3.7186,2190.6,2190.4,0.54792]
[1741497949751,2.49789,2190.6,2190.5,3.2078]
[1741497949947,0.54789,2190.6,2190.5,3.75571]
[1741497950153,0.54789,2190.6,2190.5,3.2078]
[1741497950659,0.54789,2190.6,2190.5,3.8438]
[1741497951054,0.54789,2190.6,2190.5,0.636]
[1741497951358,0.54794,2190.4,2190.3,0.6503]
[1741497955257,1.1526,2190.6,2190.4,0.54794]
[1741497955465,0.54794,2190.4,2190.3,0.6503]
[1741497957255,2.5963,2190.7,2190.3,0.6503]
[1741497957256,0.54794,2190.5,2190.3,0.6503]
[1741497957455,0.54794,2190.4,2190.3,0.6503]
[1741497961255,0.54796,2190.3,2190.2,4.4685]
[1741497961462,0.54796,2190.3,2190.2,5.0636]
[1741497962456,0.54796,2190.3,2190.2,3.2078]
[1741497964673,0.54796,2190.3,2190.2,3.8418]
[1741497964866,1.1965,2190.4,2190.2,3.8418]
[1741497965066,1.1965,2190.4,2190.3,0.59]
[1741497965067,1.74444,2190.4,2190.3,0.59]
[1741497965267,1.1965,2190.4,2190.3,0.59]
[1741497965467,0.6054,2190.4,2190.3,0.59]
[1741497965666,0.54794,2190.4,2190.3,1.2219]
[1741497965867,1.14513,2190.5,2190.3,1.2219]
[1741497966063,0.54793,2190.5,2190.3,1.2219]
[1741497966263,0.54794,2190.4,2190.3,1.2219]
[1741497966763,0.54793,2190.5,2190.3,1.76986]
[1741497967164,1.36941,2191.2,2190.3,1.76986]
[1741497967165,1.95585354,2191.1,2190.3,1.2219]
[1741497967471,0.6084,2191.0,2190.8,0.54783]
[1741497967664,0.6084,2191.0,2190.9,0.6209]
[1741497967868,1.19194354,2191.1,2190.9,0.6209]
[1741497968166,0.00685354,2191.1,2191.0,0.54779]
[1741497968569,0.00685354,2191.1,2191.0,3.75559]
[1741497971464,0.00685354,2191.1,2191.0,4.1271549]
[1741497971972,0.54758,2191.9,2191.7,0.54761]
[1741497972166,3.73878,2191.9,2191.7,0.54761]
[1741497972467,0.5974,2191.9,2191.8,3.75539]
[1741497972670,2.5948,2192.2,2191.8,3.2078]
[1741497972873,0.54752,2192.1,2191.9,1.17505]
[1741497973173,3.14915354,2192.2,2191.9,0.6275]
[1741497973371,0.00685354,2192.2,2192.1,0.54751]
[1741497973672,0.00685354,2192.2,2192.1,3.75531]
[1741497975567,0.00685354,2192.2,2192.1,3.2078]
[1741497975970,0.00685354,2192.2,2192.1,3.75531]
[1741497976868,0.00685354,2192.2,2192.1,3.2078]
[1741497977177,0.55434354,2192.2,2192.1,3.2078]
[1741497977371,1.20154354,2192.2,2192.1,3.2078]
[1741497977968,0.65405354,2192.2,2192.1,3.2078]
[1741497978171,0.65405354,2192.2,2192.1,3.75531]
[1741497978769,0.65405354,2192.2,2192.1,3.2078]
[1741497979072,0.00685354,2192.2,2192.1,3.75531]
[1741497979572,0.55434354,2192.2,2192.1,3.2078]
[1741497979978,0.00685354,2192.2,2192.1,3.75531]